Cogmind - Beta 17 @@@ ROGUE MODE // 2026.08.15 @ 16:08:32 Player: Minty Result: Destroyed by G-67 Veteran with Field Laser Performance ------------- Evolutions (7) 3500 Regions Visited (9) 1800 Robots Destroyed (84) 420 Value Destroyed (3320) 3320 Prototype IDs (15) 300 Alien Tech Used (0) 0 Bonus (15247) 15247 TOTAL SCORE: 24587 Bonus ------- High Alert Combat Kills 378 Follower Combat Kills 1896 Prayed to X0-1V1 5000 Major X0-1V1 Interference 7750 Entered DSFs 500 Friendly Fire -277 Cogmind --------- Core Integrity 0/1120 Matter 340/1100 Energy 134/135 System Corruption 14% Temperature Cool (0) Movement Core (50) Location -3/Research Parts ------- > --- POWER (2) -------- Compact Particle Reactor > --- PROPULSION (5) --- Armored Medium Treads > --- UTILITY (10) ----- Hacking Suite System Shield > --- WEAPON (4) ------- (None) > --- INVENTORY (5) ---- Improved Particle Charger Improved Kinecellerator Peak State ------------ > --- POWER ------------ Neutrino Core Light Antimatter Reactor > --- PROPULSION ------- Myomer Leg Myomer Leg Biometal Leg Improved Airjet Combat Gravmag System > --- UTILITY ---------- Improved Terrain Scanner Terrain Scan Processor Improved Targeting Computer Improved Targeting Computer Core Analyzer Advanced Powered Armor Hacking Suite Hacking Suite System Shield X0-1V1's Piety Tracker > --- WEAPON ----------- Gauss Rifle Improved Heavy Machine Gun Improved Heavy Machine Gun Hypervelocity Coil Gun > --- INVENTORY -------- Heavy Proton Cannon Heavy Proton Cannon Heavy Mass Driver Improved Plasma Cutter [Rating: 114] Favorites ----------- Power Ion Engine Engine Ion Engine Power Core Neutrino Core Reactor Light Antimatter Reactor Propulsion Aluminum Leg Treads Light Treads Leg Aluminum Leg Wheel Wheel Hover Unit Improved Airjet Flight Unit Impulse Thruster Array Utility Targeting Computer Device Heat Sink Storage Medium Storage Unit Processor Targeting Computer Hackware Hacking Suite Protection Advanced Powered Armor Weapon Improved Heavy Machine Gun Energy Gun Medium Laser Energy Cannon Heavy Proton Cannon Ballistic Gun Improved Heavy Machine Gun Ballistic Cannon Slug Cannon Special Weapon Enhanced Flamer Build | -11 -10 -10 -7 -5 -5 -5 -4 -4 -3 ------- Run | Yrd Mat Sub Scr Fac Was Fac Fac DSF Res Slots Evolved 14 | . . . . 10 . . 2 . 2 Power 1 | . . . . 1 . . . . . Propulsion 3 | . . . . 2 . . . . 1 Utility 7 | . . . . 4 . . 2 . 1 Weapon 3 | . . . . 3 . . . . . Parts Attached 108 | . 10 13 9 6 5 20 2 6 37 Power 17 | . 1 1 1 . . 6 . 1 7 Engine 7 | . 1 1 1 . . 3 . . 1 Core 4 | . . . . . . 3 . 1 . Reactor 6 | . . . . . . . . . 6 Propulsion 30 | . 5 6 . 1 3 3 . . 12 Treads 3 | . . 2 . . . . . . 1 Leg 12 | . 3 4 . . . . . . 5 Wheel 3 | . 2 . . 1 . . . . . Hover 8 | . . . . . 3 3 . . 2 Flight 4 | . . . . . . . . . 4 Utility 34 | . 4 1 2 3 . 9 2 5 8 Device 14 | . 2 . 1 2 . 4 . 2 3 Storage 4 | . 2 . 1 1 . . . . . Processor 7 | . . 1 . . . 3 . 2 1 Hackware 6 | . . . . . . . 2 . 4 Protection 3 | . . . . . . 2 . 1 . Artifact . | . . . . . . . . . . Weapon 27 | . . 5 6 2 2 2 . . 10 Energy Gun 4 | . . 2 2 . . . . . . Energy Cannon 5 | . . . 2 . . 2 . . 1 Ballistic Gun 10 | . . 1 . 2 2 . . . 5 Ballistic Cannon 6 | . . 1 1 . . . . . 4 Launcher . | . . . . . . . . . . Special Weapon 2 | . . 1 1 . . . . . . Impact Weapon . | . . . . . . . . . . Slashing Weapon . | . . . . . . . . . . Piercing Weapon . | . . . . . . . . . . Special Melee Weapon . | . . . . . . . . . . Unidentified Prototypes 11 | . 1 . . 2 1 2 . . 5 Parts Lost 64 | . 2 4 8 . . 2 . 4 44 Power 10 | . 1 . 2 . . 1 . 1 5 Propulsion 20 | . 1 3 1 . . 1 . . 14 Utility 18 | . . . 3 . . . . 3 12 Weapon 16 | . . 1 2 . . . . . 13 Highest Loss Streak 19 | . 1 2 8 . . 1 . 2 19 To Critical Strikes 1 | . . . . . . . . . 1 Average Backups 6 | 6 7 8 7 . 2 4 3 3 3 Power . | 1 . . . . . . . . . Propulsion 1 | 4 4 2 1 . . . . . . Utility 1 | . 1 1 . . . 2 . . . Weapon 2 | 1 . 3 4 . 1 1 2 2 2 Tool/Special . | . . . . . . . . . . Unused Backups 18 | . 7 4 3 . . 1 . . 3 Power 1 | . 1 . . . . . . . . Propulsion 3 | . 2 . . . . . . . 1 Utility 5 | . 1 2 . . . 1 . . 1 Weapon 6 | . 3 2 1 . . . . . . Tool/Special 3 | . . . 2 . . . . . 1 Average Slot Usage (%) 83 | . 95 94 96 22 54 90 97 96 55 Engine 9 | . 13 13 12 . 7 4 5 5 . Treads 3 | . . 13 . . . . . . . Leg 14 | . 22 18 27 . . . . . 3 Hover 4 | . . . . . 11 20 21 21 6 Device 9 | . 10 7 13 6 8 14 15 12 6 Storage 8 | . 14 13 13 . 2 1 . . . Processor 10 | . . 11 13 . . 14 15 16 10 Hackware 2 | . . . . . . . 7 10 10 Energy Gun 4 | . 28 2 . 9 3 . . . . Ballistic Gun 5 | . . 1 . 1 18 23 21 21 8 Ballistic Cannon 6 | . . 11 13 . . . . . 1 Peak Build Rating 114 | 6 20 17 20 70 70 78 82 91 114 Average Rating 32 | 6 6 12 16 52 52 63 81 78 65 On Entrance 40 | 6 6 8 15 6 70 49 76 82 91 Avg Prop Armor Cover (%) 12 | . . 6 . . . 2 . . 16 Naked Turns 1 | . . . 1 . . . . . . Heaviest Build 62 | 14 30 36 33 36 41 47 47 50 62 Greatest Support 127 | 20 20 40 20 30 41 50 50 50 127 Greatest Overweight (x) 2 | . 1 2 1 1 1 . . . 1 Average Overweight (x) . | . . . . . . . . . . Largest Inventory Capacity 15 | 8 15 15 15 15 15 15 5 5 5 Average Capacity 9 | 8 9 10 14 5 10 7 5 5 5 Most Carried 14 | 6 10 13 14 2 3 6 4 5 5 Average Carried 7 | 6 7 10 10 . 2 4 3 4 4 Final Capacity 15 | 8 10 10 5 15 15 5 5 5 5 Final Carried 10 | 6 10 10 5 2 3 5 3 5 2 Class Distribution -------------------- 63% | Mutant 13% | Scavenger-Scout 8% | Hacker-Mutant 3% | Gunner 3% | Scavenger-Gunner Dominant Class ---------------- Mutant | -10/Materials Mutant | -10/Subcaves Mutant | -7/Scraptown Mutant | -5/Factory Gunner | -5/Waste Scavenger-Scout | -5/Factory Scavenger-Scout | -4/Factory Scavenger-Scout | -4/DSF Hacker-Mutant | -3/Research Resources | -11 -10 -10 -7 -5 -5 -5 -4 -4 -3 ----------- Run | Yrd Mat Sub Scr Fac Was Fac Fac DSF Res Matter Collected 4790 | 200 55 1010 240 30 183 1462 . 344 1266 Remotely . | . . . . . . . . . . Salvage Created 3837 | . 381 329 322 255 . 1067 . 182 1301 Parts 189 | . 24 24 15 6 . 55 . 11 54 Haulers Intercepted 5 | . 1 . . 1 . 2 . . 1 Recyclers Shooed 4 | . . . . . . 3 . . 1 Parts Field Recycled . | . . . . . . . . . . Retrieved Matter . | . . . . . . . . . . Parts Self-Destructed 11 | . . 11 . . . . . . . Prevented 3 | . . 3 . . . . . . . Parts Restored . | . . . . . . . . . . Kills | -11 -10 -10 -7 -5 -5 -5 -4 -4 -3 ------- Run | Yrd Mat Sub Scr Fac Was Fac Fac DSF Res Combat Hostiles Destroyed 70 | . 9 15 5 2 . 8 . 10 21 Melee 1 | . . . . . . . . . 1 Guns 47 | . 9 7 . 2 . 8 . 10 11 Cannons 22 | . . 8 5 . . . . . 9 Classes Destroyed 22 | . 5 1 4 1 . 5 . 3 3 Worker 2 | . . . . 1 . . . . 1 Builder 5 | . . . . . . 4 . . 1 Tunneler 2 | . . . . . . 2 . . . Hauler 5 | . 1 . . 1 . 2 . . 1 Recycler 3 | . . . . . . 3 . . . Operator 1 | . 1 . . . . . . . . Drone 1 | . . . . . . . . . 1 Watcher 2 | . . . . . . 2 . . . Swarmer 15 | . 3 4 . . . 2 . 2 4 Grunt 17 | . 5 3 . 2 . 2 . . 5 Duelist 1 | . . . . . . . . . 1 Sentry 4 | . . 1 . . . 2 . . 1 Demolisher 1 | . . . . . . . . 1 . Hunter 6 | . . . . . . 2 . 1 3 Programmer 6 | . . . . . . . . . 6 Heavy 1 | . . . . . . . . 1 . Subdweller 8 | . 1 7 . . . . . . . Bolteater 1 | . . . 1 . . . . . . Explorer 1 | . . . 1 . . . . . . Scrapper 1 | . . . 1 . . . . . . Elite 1 | . . . 1 . . . . . . Assembled 5 | . . . . . . . . 5 . Thug 1 | . . . 1 . . . . . . Best Kill Streak 9 | . 6 3 3 2 . 5 . 8 9 Combat Bots Only 8 | . 6 3 3 1 . 2 . 8 6 Max Kills in Single Turn 2 | . 2 2 1 1 . 2 . 2 1 Gunslinging 1 | . 1 . . . . . . 1 . Exploded . | . . . . . . . . . . Melee 1 | . . . . . . . . . 1 Uniques/NPCs Destroyed . | . . . . . . . . . . Combat | -11 -10 -10 -7 -5 -5 -5 -4 -4 -3 -------- Run | Yrd Mat Sub Scr Fac Was Fac Fac DSF Res Hostile Shots Fired 846 | . 54 82 73 14 . 64 . 49 510 Missed 310 | . 20 31 13 4 . 25 . 18 199 Hits 536 | . 34 51 60 10 . 39 . 31 311 Melee 37 | . . . 15 . . . . 2 20 Projectile 499 | . 34 51 45 10 . 39 . 29 291 AOE 5 | . . . . . . . . 5 . Critical Strikes 20 | . . 1 2 1 . . . . 16 Part Disruptions 2 | . . . . . . . . 2 . Damage Taken 9646 | . 385 847 1015 192 . 709 . 637 5861 Core 2144 | . 90 118 394 58 . 41 . 11 1432 Absorbed by Shields 247 | . . . . . . 108 . 139 . Ignored by Resistances 64 | . . . . . . . . 64 . Regen/Repaired (Parts) 239 | . . . 78 . . 59 . 12 90 Core Remaining (%) 79 | 100 . . 26 . . 95 . 98 . Volleys Fired 283 | . 36 62 19 17 7 51 . 20 71 Largest 4 | . 2 2 1 2 4 4 . 4 4 Hottest 146 | . 100 120 120 112 96 96 . 96 146 Shots Fired 687 | . 72 80 19 34 28 202 . 81 171 Gun 565 | . 72 25 1 34 28 202 . 81 122 Cannon 121 | . . 54 18 . . . . . 49 Launcher . | . . . . . . . . . . Special 1 | . . 1 . . . . . . . Kinetic 547 | . . 62 9 . 28 202 . 81 165 Thermal 126 | . 72 10 10 34 . . . . . Explosive . | . . . . . . . . . . Electromagnetic 14 | . . 8 . . . . . . 6 Robot Hit Streak 18 | . 3 9 7 16 18 8 . 6 10 Robot Miss Streak 8 | . 4 3 2 2 2 7 . 3 8 Penetration Max 1 | . . . . . . . . . 1 Secondary Targets 12 | . 2 . . . . 3 . 3 4 Max Gunslinging Chain 2 | . 1 . . . . 1 . 2 1 Shots Hit Robots 380 | . 34 49 15 27 17 84 . 40 114 Core Hits 179 | . 22 20 10 9 . 44 . 18 56 Critical Kills 7 | . . 1 . . . . . . 6 Critical Parts Destroyed 16 | . . 3 . . . 3 . . 10 Critical Strikes 35 | . 5 7 . 4 . 3 . . 16 Burn 11 | . 5 2 . 4 . . . . . Destroy 24 | . . 5 . . . 3 . . 16 Melee Attacks . | . . . . . . . . . . Impact . | . . . . . . . . . . Slashing . | . . . . . . . . . . Piercing . | . . . . . . . . . . Sneak Attacks . | . . . . . . . . . . Combat Hostiles . | . . . . . . . . . . Follow-up Attacks . | . . . . . . . . . . Damage Inflicted 9491 | . 456 1177 496 460 408 2400 . 894 3200 Guns 6692 | . 432 345 7 460 408 2400 . 894 1746 Cannons 2707 | . . 818 485 . . . . . 1404 Explosions . | . . . . . . . . . . Melee . | . . . . . . . . . . Ramming 81 | . 24 3 4 . . . . . 50 Kinetic 7916 | . . 933 252 . 408 2400 . 894 3029 Thermal 1234 | . 432 102 240 460 . . . . . Explosive . | . . . . . . . . . . Electromagnetic 260 | . . 139 . . . . . . 121 Impact . | . . . . . . . . . . Slashing . | . . . . . . . . . . Piercing . | . . . . . . . . . . Highest Corruption 18 | . . 4 . . 8 18 . 5 14 Average Corruption 7 | . . 3 . . 8 10 . 5 10 Corruption Purged . | . . . . . . . . . . Corruption Blocked . | . . . . . . . . . . Effects 62 | . . 15 . . 3 20 . 5 19 Message Errors 16 | . . 3 . . 2 4 . 2 5 Matter Fused 13 | . . 4 . . 1 3 . . 5 Heat Flow Errors 6 | . . 1 . . . 4 . . 1 Energy Discharges 7 | . . 2 . . . 2 . . 3 Parts Rejected 2 | . . . . . . . . . 2 Data Loss (minor) 5 | . . 2 . . . 2 . . 1 Data Loss (major) 2 | . . 2 . . . . . . . Misfires 2 | . . . . . . . . 2 . Alerts 2 | . . 1 . . . 1 . . . Misdirections 1 | . . . . . . 1 . . . Weapon Failures 6 | . . . . . . 3 . 1 2 Overload Shots . | . . . . . . . . . . Overflow Damage 116 | . . . 30 . . . . . 86 Projectiles 116 | . . . 30 . . . . . 86 Explosions . | . . . . . . . . . . Melee . | . . . . . . . . . . Knockbacks 19 | . . 5 1 . . . . . 13 Impact 1 | . . 1 . . . . . . . Kinetic 17 | . . 4 1 . . . . . 12 Secondary 1 | . . . . . . . . . 1 Self-Inflicted Damage 19 | . . . 2 . . . . . 17 Shots . | . . . . . . . . . . Rammed 9 | . . 1 1 . . . . . 7 Targets Rammed 19 | . 4 1 1 . . . . . 13 Kicked 10 | . 4 . . . . . . . 6 Crushed . | . . . . . . . . . . Highest Temperature 396 | . 294 165 396 36 . 200 . . 234 Average Temperature 91 | . 85 83 157 15 . 78 . . 118 Received Heat Transfer 1604 | . 144 195 398 108 . 116 . 38 605 Siege Activations . | . . . . . . . . . . Martial Activations . | . . . . . . . . . . Shielding Activations . | . . . . . . . . . . Robots Disrupted . | . . . . . . . . . . Combat Hostiles . | . . . . . . . . . . Robots Corrupted . | . . . . . . . . . . Combat Hostiles . | . . . . . . . . . . Parts Fried . | . . . . . . . . . . Impact Corruptions . | . . . . . . . . . . Robots Melted . | . . . . . . . . . . Combat Hostiles . | . . . . . . . . . . Parts Melted 10 | . 3 . 2 5 . . . . . Heat Transferred 3683 | . 1628 450 310 1295 . . . . . Parts Sabotaged . | . . . . . . . . . . Parts Stolen 6 | . . . 3 . . . . . 3 Parts Stripped . | . . . . . . . . . . Power Chain Reactions . | . . . . . . . . . . Alert | -11 -10 -10 -7 -5 -5 -5 -4 -4 -3 ------- Run | Yrd Mat Sub Scr Fac Was Fac Fac DSF Res Maximum Alert Level 4 | . . . . . . 4 3 2 2 Low Security (%) 48 | 100 100 . . 100 100 22 . . 27 Level 1 16 | . . . . . . 20 . . 30 Level 2 23 | . . . . . . 6 . 100 41 Level 3 3 | . . . . . . 17 100 . . Level 4 6 | . . . . . . 32 . . . Level 5 . | . . . . . . . . . . High Security . | . . . . . . . . . . Max Security . | . . . . . . . . . . Peak Influence 1598 | . 152 . . 45 72 1598 774 557 697 Initial 774 | . . . . . 5 36 774 541 273 Average 336 | . 99 . . 21 27 714 774 501 332 Influence Increases 4198 | . 340 170 . 67 122 1924 . 126 1449 Destroy 0b10 Robot/C 1620 | . 160 160 . 40 20 660 . 100 480 Destroy 0b10 Robot/NC 110 | . 10 . . 10 . 75 . . 15 Destroy Leader 254 | . 42 10 . 2 . 98 . 10 92 Allied During Kill 835 | . . . . . 20 777 . 16 22 Successful Hack 119 | . 52 . . . . 2 . . 65 Select Force Hacks 80 | . 30 . . . . . . . 50 Disable Machine 90 | . . . . . . 90 . . . Destroy Structure 325 | . 1 . . . 82 222 . . 20 Partial Spotted 30 | . . . . . . . . . 30 Lose Combat Pursuer 735 | . 45 . . 15 . . . . 675 Influence Decreases 3576 | . 246 264 . 50 87 394 808 413 1314 Entered New Map 1329 | . . 46 . . 12 16 808 233 214 Time Decay 1197 | . 226 218 . 50 55 238 . . 410 Lost Part 520 | . 20 . . . . 20 . 40 440 Lost Ally 530 | . . . . . 20 120 . 140 250 Squads Dispatched 22 | . 3 . . 1 . 8 . 1 9 Investigation 8 | . 2 . . . . 1 . . 5 Extermination 3 | . . . . . . 1 . . 2 Reinforcement 10 | . 1 . . 1 . 5 . 1 2 Assault 1 | . . . . . . 1 . . . Garrison . | . . . . . . . . . . Intercept . | . . . . . . . . . . Searches Triggered . | . . . . . . . . . . Construction Impeded 1 | . . . . . . 1 . . . Haulers Reinforced 6 | . . . . 1 . 3 . . 2 Active Scanning Responses . | . . . . . . . . . . Cargo Convoy Interrupts . | . . . . . . . . . . Stealth | -11 -10 -10 -7 -5 -5 -5 -4 -4 -3 --------- Run | Yrd Mat Sub Scr Fac Was Fac Fac DSF Res Distress Signals 14 | . 4 . . . . 4 . . 6 Communications Jammed . | . . . . . . . . . . Distress Signals . | . . . . . . . . . . Times Spotted 254 | . 17 26 29 3 6 36 . 45 92 Peak Tracking Total 17 | . 4 3 8 2 1 6 . 17 15 Tactical Retreats 21 | . 3 . . 1 . . . 2 15 Traps | -11 -10 -10 -7 -5 -5 -5 -4 -4 -3 ------- Run | Yrd Mat Sub Scr Fac Was Fac Fac DSF Res Traps Triggered 4 | . 1 . . 1 . . . . 2 Indirectly . | . . . . . . . . . . Trap Hack Attempts . | . . . . . . . . . . Triggered . | . . . . . . . . . . Disarmed . | . . . . . . . . . . Reprogrammed . | . . . . . . . . . . Reused . | . . . . . . . . . . Traps Extracted . | . . . . . . . . . . Installed . | . . . . . . . . . . Triggered . | . . . . . . . . . . Machines | -11 -10 -10 -7 -5 -5 -5 -4 -4 -3 ---------- Run | Yrd Mat Sub Scr Fac Was Fac Fac DSF Res Machines Disabled 10 | . . . 4 . . 6 . . . Max in Single Turn 1 | . . . . . . 1 . . . Machines Repaired . | . . . . . . . . . . Machines Dismantled . | . . . . . . . . . . Machines Sabotaged . | . . . . . . . . . . Overloaded Fab Kills . | . . . . . . . . . . Hacking | -11 -10 -10 -7 -5 -5 -5 -4 -4 -3 --------- Run | Yrd Mat Sub Scr Fac Was Fac Fac DSF Res Machines Accessed 16 | . 6 . . . . 2 1 . 7 Terminals 10 | . 5 . . . . . 1 . 4 Fabricators 2 | . . . . . . . . . 2 Repair Stations . | . . . . . . . . . . Recycling Units 1 | . 1 . . . . . . . . Scanalyzers 3 | . . . . . . 2 . . 1 Garrison Access . | . . . . . . . . . . Total Hacks 54 | . 22 . . . . 8 1 . 23 Successful 25 | . 12 . . . . 3 1 . 9 Failed 29 | . 10 . . . . 5 . . 14 Catastrophic 4 | . 1 . . . . . . . 3 Database Lockouts . | . . . . . . . . . . Manual 21 | . 12 . . . . . . . 9 Terminals 34 | . 20 . . . . . 1 . 13 Fabricators 7 | . . . . . . . . . 7 Repair Stations . | . . . . . . . . . . Recycling Units 2 | . 2 . . . . . . . . Scanalyzers 11 | . . . . . . 8 . . 3 Garrison Access . | . . . . . . . . . . Terminal Hacks 12 | . 8 . . . . . 1 . 3 Robot Analysis 2 | . 2 . . . . . . . . Prototype ID Bank 1 | . 1 . . . . . . . . Open DSF 1 | . . . . . . . 1 . . Branch Access Points 1 | . 1 . . . . . . . . Terminal Index 1 | . . . . . . . . . 1 Alert Level 1 | . 1 . . . . . . . . Locate Traps 1 | . . . . . . . . . 1 Patrol Status 1 | . . . . . . . . . 1 Registered Components 1 | . 1 . . . . . . . . Zone Layout 2 | . 2 . . . . . . . . Fabricator Hacks 1 | . . . . . . . . . 1 Network Status 1 | . . . . . . . . . 1 Repair Station Hacks . | . . . . . . . . . . Recycling Unit Hacks 1 | . 1 . . . . . . . . Report Inventory 1 | . 1 . . . . . . . . Scanalyzer 6 | . . . . . . 3 . . 3 Insert Component 1 | . . . . . . . . . 1 Analyze 1 | . . . . . . . . . 1 Retrieve Study 4 | . . . . . . 3 . . 1 Garrison Access Hacks . | . . . . . . . . . . Unauthorized Hacks 5 | . 3 . . . . . . . 2 Terminals 2 | . 2 . . . . . . . . Track 1 | . 1 . . . . . . . . Operators 1 | . 1 . . . . . . . . Fabricators 2 | . . . . . . . . . 2 Liberate 1 | . . . . . . . . . 1 Overload 1 | . . . . . . . . . 1 Repair Stations . | . . . . . . . . . . Recycling Units 1 | . 1 . . . . . . . . Tunnel 1 | . 1 . . . . . . . . Scanalyzers . | . . . . . . . . . . Garrison Access . | . . . . . . . . . . Data Cores Recovered 1 | . . . . . . 1 . . . Used . | . . . . . . . . . . Hacking Detections 14 | . 6 . . . . 1 . . 7 Full Trace Events 6 | . 1 . . . . 1 . . 4 Feedback Events 1 | . . . . . . . . . 1 Hackware Fried 1 | . . . . . . . . . 1 Feedback Blocked . | . . . . . . . . . . Robot Schematics Acquired . | . . . . . . . . . . Robots Built . | . . . . . . . . . . Authchips . | . . . . . . . . . . Time . | . . . . . . . . . . Total Robot Build Rating . | . . . . . . . . . . Part Schematics Acquired 1 | . . . . . . . . . 1 Parts Built . | . . . . . . . . . . Authchips . | . . . . . . . . . . Time . | . . . . . . . . . . Total Part Build Rating . | . . . . . . . . . . Part Studies Acquired 4 | . . . . . . 3 . . 1 Parts Repaired . | . . . . . . . . . . Time . | . . . . . . . . . . Parts Recycled . | . . . . . . . . . . Recycled Matter . | . . . . . . . . . . Retrieved Matter . | . . . . . . . . . . Retrieved Components . | . . . . . . . . . . Parts Scanalyzed 1 | . . . . . . . . . 1 Part Schematics Acquired 1 | . . . . . . . . . 1 Parts Damaged . | . . . . . . . . . . Bothacking | -11 -10 -10 -7 -5 -5 -5 -4 -4 -3 ------------ Run | Yrd Mat Sub Scr Fac Was Fac Fac DSF Res Used RIF Installer . | . . . . . . . . . . Robots Hacked . | . . . . . . . . . . Non-combat . | . . . . . . . . . . Combat . | . . . . . . . . . . Robot Hacks Applied . | . . . . . . . . . . Relay Couplers Released . | . . . . . . . . . . Fabnet Peak Effective % . | . . . . . . . . . . Robots Rewired 2 | . . . . 2 . . . . . Allies Hacked . | . . . . . . . . . . Hacks Repelled . | . . . . . . . . . . Allies | -11 -10 -10 -7 -5 -5 -5 -4 -4 -3 -------- Run | Yrd Mat Sub Scr Fac Was Fac Fac DSF Res Total Allies 35 | . . 1 1 2 18 . . . 13 Largest Group 19 | . . 1 1 2 19 17 9 9 5 Highest-Rated Group 720 | . . 90 446 113 720 649 386 386 150 Highest-Rated Ally 446 | . . 90 446 64 64 64 64 64 110 Total Orders . | . . . . . . . . . . Ally Attacks 436 | . . 13 40 . 154 139 . 39 51 Total Damage 13308 | . . 544 2669 . 4382 3703 . 1036 974 Kills 69 | . . 5 20 . 8 29 . 4 3 Allies Corrupted 1 | . . . . . . 1 . . . Allies Melted . | . . . . . . . . . . X0-1V1 Amusement Gains 199 | . 8 . 94 35 . 16 . 32 14 Good Acts 44 | . 1 16 1 1 2 5 . 1 17 Bad Acts 56 | . 2 16 . 1 5 9 . 1 22 Intel | -11 -10 -10 -7 -5 -5 -5 -4 -4 -3 ------- Run | Yrd Mat Sub Scr Fac Was Fac Fac DSF Res Active Infowar (turns) 999 | . . . . . . 489 8 117 385 Optics 7 | . . . . . . . . 7 . Sensors 796 | . . . . . . 482 8 113 193 Terrain 898 | . . . . . . 391 8 114 385 Structural 215 | . . . . . . 215 . . . Robot Analysis Total 2 | . 2 . . . . . . . . Derelict Logs Recovered 2 | . . . 2 . . . . . . Drone Launches . | . . . . . . . . . . Drone Recoveries . | . . . . . . . . . . Exploration | -11 -10 -10 -7 -5 -5 -5 -4 -4 -3 ------------- Run | Yrd Mat Sub Scr Fac Was Fac Fac DSF Res Turns Passed 5026 | 4 537 1441 1103 136 145 508 8 150 994 Spaces Moved 3583 | 4 311 735 571 79 140 552 5 148 1038 Core 340 | . . . 35 1 . . . . 304 Treads 387 | . . 387 . . . . . . . Legs 1243 | 4 255 348 536 . . . . . 100 Wheels 158 | . 56 . . 78 24 . . . . Hover 1029 | . . . . . 116 552 5 148 208 Flight 426 | . . . . . . . . . 426 Fastest Speed 32 | 120 80 120 50 80 46 43 48 48 32 Average Speed 103 | 120 115 168 181 80 53 47 48 48 56 Slowest Speed 260 | 120 190 260 190 100 85 52 48 48 190 Overloaded Moves 10 | . . . . . . . . . 10 Propulsion Burnouts . | . . . . . . . . . . Robots Hopped 9 | . . . . . . . . . 9 Potential Cave-ins . | . . . . . . . . . . Cave-ins Triggered . | . . . . . . . . . . Exploration Rate (%) 38 | 2 47 49 46 1 80 18 . 83 23 Regions Visited 9 Branch Regions 2 Pre-discovered Areas 3 | . 1 . 2 . . . . . . Known Exits Taken 2 | . . . . . . 1 1 . . Unknown Exits Taken 4 | 1 1 1 1 . . . . . . Scrap Searched 10 | . . 7 3 . . . . . . Spaces Dug 2 | . . 2 . . . . . . . Terrain Destroyed 60 | . . 16 2 . 1 29 . 3 9 Melee . | . . . . . . . . . . Projectile 60 | . . 16 2 . 1 29 . 3 9 AOE . | . . . . . . . . . . Terrain Rammed . | . . . . . . . . . . Walls Destroyed . | . . . . . . . . . . Machines Disabled . | . . . . . . . . . . Actions | -11 -10 -10 -7 -5 -5 -5 -4 -4 -3 --------- Run | Yrd Mat Sub Scr Fac Was Fac Fac DSF Res Total 4380 | 3 417 860 616 115 195 688 10 182 1294 Wait 235 | . 37 20 7 . 37 31 4 4 95 Move 3558 | 3 310 734 571 79 139 551 4 147 1020 Hop 9 | . . . . . . . . . 9 Pick Up 42 | . 10 11 4 2 1 8 . 1 5 Fast Attach 70 | . 3 1 2 5 3 12 . 7 37 Attach 45 | . 3 10 4 2 3 6 2 . 15 Detach 30 | . 2 4 . . 5 7 . 1 11 Swap 34 | . 5 8 6 . . 8 . . 7 Drop 46 | . 7 9 3 . . 14 . 2 11 Fire 283 | . 36 62 19 17 7 51 . 20 71 Melee . | . . . . . . . . . . Ram 7 | . . . . . . . . . 7 Kick 10 | . 4 . . . . . . . 6 Crush 1 | . . 1 . . . . . . . Escape Stasis . | . . . . . . . . . . Rewire 10 | . . . . 10 . . . . . Trap . | . . . . . . . . . . Miscellaneous . | . . . . . . . . . . Route ------- -11/Scrapyard -10/Materials (discovered 2 exits: Min / [*Sub]) -10/Subcaves (discovered 4 exits: [*Mat x2] / Rec / [*Scr]) -7/Scraptown -5/Factory -5/Waste -5/Factory -4/Factory -4/DSF -3/Research (discovered 2 exits: Res x2) History --------- Turn | Location | Event 1 | -11/Scrapyard | Discovered new exit (range 3) 5 | -11/Scrapyard | Entered Materials 307 | -10/Materials | Build established: Mutant 398 | -10/Materials | Identified exit to Mines 474 | -10/Materials | Discovered new exit (range 3) 500 | -10/Materials | Prayed at D.C.S.S. Altar Unit 505 | -10/Materials | Derelicts attacked the area 542 | -10/Materials | Entered Subcaves 543 | -10/Subcaves | Approached by a straggling Scientist 642 | -10/Subcaves | Disturbed a concealed Subdweller 717 | -10/Subcaves | X0-1V1 mutated your Weapon slot to Propulsion slot 918 | -10/Subcaves | Discovered new exit (range 7) 1124 | -10/Subcaves | A swath of the cavern ceiling suddenly collapsed 1226 | -10/Subcaves | Core integrity permanently improved by X0-1V1 (+200) 1235 | -10/Subcaves | Disturbed a concealed Subdweller 1243 | -10/Subcaves | X0-1V1 sent hostile G-34 Mercenary (x3) 1245 | -10/Subcaves | X0-1V1 whisked you away to safety 1246 | -10/Subcaves | Shifting Twisted Machinery released Sub. Power Source 1250 | -10/Subcaves | Discovered new exit (range 18) 1255 | -10/Subcaves | X0-1V1 sent allied H-61 Shepherd (x1) 1263 | -10/Subcaves | Shifting Twisted Machinery released Flamer 1264 | -10/Subcaves | X0-1V1 sent you into danger 1274 | -10/Subcaves | Core integrity restored by X0-1V1 (+72) 1278 | -10/Subcaves | Weapon slot count temporarily expanded by X0-1V1 (+1) 1293 | -10/Subcaves | A Subdweller sparked back to life 1293 | -10/Subcaves | A Subdweller sparked back to life 1316 | -10/Subcaves | Found Prototype Wheel 1347 | -10/Subcaves | X0-1V1 mutated your Propulsion slot to Utility slot 1350 | -10/Subcaves | X0-1V1 activates XOMVISION 1368 | -10/Subcaves | X0-1V1 rewrote H-61 Shepherd IFF filter 1476 | -10/Subcaves | A swath of the cavern ceiling suddenly collapsed 1659 | -10/Subcaves | X0-1V1 sent hostile G-34 Mercenary (x3) 1746 | -10/Subcaves | X0-1V1 activates XOMVISION 1909 | -10/Subcaves | Scientist uncovered a shortcut to Scraptown 1976 | -10/Subcaves | Identified exit to Recycling 1976 | -10/Subcaves | X0-1V1 revealed exit location to -7/Recycling 1983 | -10/Subcaves | Entered Scraptown 1983 | -7/Scraptown | System corruption cleaned by C-Scrubber 2139 | -7/Scraptown | Visited Junk Repository 2270 | -7/Scraptown | Scanned Subdweller tech in exchange for log data 2274 | -7/Scraptown | Learned location of 2 exits from Research 2276 | -7/Scraptown | Learned location of Armory (-4) 2363 | -7/Scraptown | Visited CR-KLE's Repair Center 2376 | -7/Scraptown | CR-KLE repaired 4 parts 2414 | -7/Scraptown | Visited The Evicted 2636 | -7/Scraptown | Heard Great Nut preacher, LISTEN AND RECITE! 2977 | -7/Scraptown | Visited Shadow of the Wyrm 2989 | -7/Scraptown | X0-1V1 brought Wyrm Statue to life 2989 | -7/Scraptown | Attacked by Scraptown defenders 3001 | -7/Scraptown | Core integrity fell below 50% 3057 | -7/Scraptown | Core integrity fell below 20% 3062 | -7/Scraptown | X0-1V1 rescued you from certain death 3084 | -7/Scraptown | Discovered new exit (range 4) 3086 | -7/Scraptown | Entered Factory 3086 | -5/Factory | Evolved 10 slots: Power x1, Propulsion x2, Utility x4, Weapon x3 3086 | -5/Factory | Identified Maxwheels 3087 | -5/Factory | Attached Maxwheels, gained temporary slots: Weapon x2 3091 | -5/Factory | Lost 8 parts (2p1n3u2w) 3181 | -5/Factory | X0-1V1 foreshadows a heat wave 3222 | -5/Factory | Sucked down chute 3222 | -5/Factory | Entered Waste 3229 | -5/Waste | Mass support permanently improved by X0-1V1 (+9; -230 max core) 3241 | -5/Waste | Spotted C-40 Crusher 3241 | -5/Waste | Spotted C-40 Crusher 3258 | -5/Waste | Warlord forces began an assault 3280 | -5/Waste | Spotted C-40 Crusher 3282 | -5/Waste | 2 allies followed down the chute 3288 | -5/Waste | Allies destroyed C-40 Crusher 3290 | -5/Waste | X0-1V1 vaporized surrounding terrain (radius 24) 3293 | -5/Waste | Spotted C-40 Crusher 3301 | -5/Waste | Allies destroyed C-40 Crusher 3312 | -5/Waste | Allies destroyed C-40 Crusher 3318 | -5/Waste | Spotted C-40 Crusher 3324 | -5/Waste | Allies destroyed C-40 Crusher 3325 | -5/Waste | X0-1V1 rewrote KD-62U(g) IFF filter 3327 | -5/Waste | Discovered new exit (range 16) 3367 | -5/Waste | Entered Factory 3367 | -5/Factory | Accompanied by 17 allies 3382 | -5/Factory | Heat dissipation permanently improved by X0-1V1 (+30; -150 max core) 3509 | -5/Factory | X0-1V1 announced a LAN party 3535 | -5/Factory | X0-1V1 vaporized surrounding terrain (radius 19) 3648 | -5/Factory | Lost 6 allies 3730 | -5/Factory | System corruption reached 10% 3768 | -5/Factory | Sensors blinded by X0-1V1 3826 | -5/Factory | Build established: Scavenger-Scout 3852 | -5/Factory | Discovered new exit (range 11) 3858 | -5/Factory | Identified exit to Factory 3875 | -5/Factory | Entered another Factory area 3875 | -4/Factory | Accompanied by 9 allies 3875 | -4/Factory | Evolved 2 slots: Utility x2 3879 | -4/Factory | Identified exit to DSF 3883 | -4/Factory | Entered DSF 3883 | -4/DSF | Accompanied by 9 allies 3893 | -4/DSF | Assembled infested the area 3911 | -4/DSF | Additional patrols routed to DSF 3999 | -4/DSF | Lost 8 allies 4003 | -4/DSF | Found Adv. Powered Armor 4018 | -4/DSF | Destroyed 8 combat bots 4022 | -4/DSF | Discovered new exit (range 16) 4033 | -4/DSF | Entered Research 4033 | -3/Research | Accompanied by 1 ally 4033 | -3/Research | Evolved 2 slots: Propulsion x1, Utility x1 4034 | -3/Research | Identified exit to Research 4173 | -3/Research | X0-1V1 announced a LAN party 4220 | -3/Research | Lost 4 parts (1p2n1w) 4362 | -3/Research | System Shield fried by hacking feedback 4444 | -3/Research | X0-1V1 sent allied Lightning (x1) 4487 | -3/Research | Lost 19 parts (3p5n6u5w) 4550 | -3/Research | Core integrity restored by X0-1V1 (+302) 4616 | -3/Research | System corruption reached 10% 4639 | -3/Research | Lost 4 parts (2n1u1w) 4763 | -3/Research | Lost 7 parts (1p3u3w) 4777 | -3/Research | X0-1V1 sent you into danger 4789 | -3/Research | X0-1V1 sent you to a vault 4792 | -3/Research | X0-1V1 redirected Transport squads to designated parking area 4807 | -3/Research | Cld. Impulse Thruster reconfigured into Item Mimic 4834 | -3/Research | X0-1V1 activates XOMVISION 4840 | -3/Research | Lost 4 parts (3n1u) 4853 | -3/Research | Lost 5 allies 4917 | -3/Research | X0-1V1 sent you into danger 4919 | -3/Research | Core integrity fell below 50% 4985 | -3/Research | Build established: Hacker-Mutant 5006 | -3/Research | X0-1V1 sent allied S-43 Plague (x5) 5016 | -3/Research | X0-1V1 turns hostiles against one another 5025 | -3/Research | Core integrity fell below 20% 5027 | -3/Research | Destroyed by G-67 Veteran with Field Laser Last Messages --------------- 05011_ Acquired 65 matter. 05013_ System corrupted: Heat flow error (+296). 05013_ S-43 Plague destroyed. 05014_ Acquired 36 matter. 05016_ X0-1V1: "A civil war? On my watch? More likely than you'd think." 05016_ X0-1V1 tampers with P-80 Master IFF filter. 05016_ X0-1V1 tampers with G-67 Veteran IFF filter. 05017_ Acquired 35 matter. 05019_ G-67 Veteran destroyed. 05019_ Slug penetrates Wall. 05019_ Sensor data returns to normal. 05020_ Impulse Thruster Array+ destroyed. 05021_ Slammed into G-67 Veteran. 05021_ Slug penetrates Wall. 05022_ Slammed into G-67 Veteran. 05024_ Penetrated by Slug. 05024_ Slug penetrates Wall. 05025_ Critical hit (Burn: +50). 05025_ Acquired Arm. Medium Treads. 05027_ X0-1V1 snickers! Map ----- +----------------------------------------------------+ | ?????????????????????????????????????????????????? | | ?????????????????????????????????????????????????? | | ?????????????????????????????????????????????????? | | ?????????????????????????????????????????????????? | | ?????????????????????????????????????????????????? | | ?????????????????????????????????????????????????? | | ?????????????????????????????????????????????????? | | ?????????????????????????????????????????????????? | | ?????????????????????????????????????????????????? | | ?????????????????????????????????????????????????? | | ?????????????????????????????????????????????????? | | ?????????????????????????????????????????????????? | | ?????????????????????????????????????????????????? | | ?????????????????????????????????????????????????? | | ?????????????????????????????????????????????????? | | ?????????????????????????????????????????????????? | | ?????????????????????????????????????????????????? | | ?????????????????????????????????????????????????? | | ?????????????????????????????????????????????????? | | ?????????????????????????????????????????????????? | | ?????????????????????????????????????????????????? | | ?????????????????????????????????????????????????? | | ?????????????????????????????????????????????????? | | ??????????????????????##########?????????????????? | | ??????????????????????# !== #?????????????????? | | ??????????????????????# !@ #?????????????????? | | ??????????????????????# ! #????#????????????? | | ??????????????????????# # #????????????? | | ??????????????????????# g/ #????????????? | | ???????????????????#### Ygg g # #????????????? | | ???????????????????# /g #? #????????????? | | ???????????????????# ## #??? #????????????? | | ???????????????????# ## #?????????????????? | | ???????????#########/###########?????????????????? | | ???????????# [ #????????????????????????? | | ???????????# !%= #????????????????????????? | | ???????????# [ #????????????????????????? | | ???????????# #????????????????????????? | | ???????????# """ #????????????????????????? | | ???????????# """" #????????????????????????? | | ???????????# "F"" #????????????????????????? | | ???????????# "" #????????????????????????? | | ???????????# """ #????????????????????????? | | ???????????# "" #????????????????????????? | | ???????????# #????????????????????????? | | ???????????# ! ! #????????????????????????? | | ???????????#######/######????????????????????????? | | ???????????????# !!|#??????????????